Workbook

Sheet Intro
B1: Heifer Development Budget
B2: Version 1.0 2024
B4: Andrew P. Griffith
B5: Professor
B6: Office: (931) 486-2129 Email: agriff14@utk.edu
B26: The University of Tennessee is an EEO/AA/Title VI/Title IX/Section 504/ADA/ADEA institution in the provision of its education and employment programs and services. All qualified applicants will receive equal consideration for employment and admission without regard to race, color, national origin, religion, sex, pregnancy, marital status, sexual orientation, gender identity, age, physical or mental disability, genetic information, veteran status, and parental status.

Sheet 11 month clean
Q1: % fed at | R1: =N6 -> 0.01 | S1: 0.02 | T1: 0.02
B2: Heifer Development Budget | M2: Heifers developed | N2: 100 | R2: Comm | S2: Pasture | T2: Hay | U2: CommercialAdd | V2: PastureAdd | W2: HayAdd
G3: Total | M3: Initial weight | N3: 500 | P3: Oct | Q3: =N3 -> 500 | R3: =Q3*$R$1 -> 5 | S3: =Q3*$S$1 -> 10
D4: Unit | E4: $/Unit | F4: No. Units | G4: $/head | M4: Average daily gain | N4: 1.5 | Q4: =Q3+$N$4 -> 501.5 | R4: =Q4*$R$1 -> 5.015 | S4: =Q4*$S$1 -> 10.03 | U4: =R3+R4 -> 10.015 | V4: =S3+S4 -> 20.03 | W4: =T3+T4 -> 0
B5: Heifer | C5: Weaned heifer value | D5: lb | E5: 2.65 | F5: 500 | G5: =E5*F5 -> 1325 | M5: Days in development | N5: 330 | Q5: =Q4+$N$4 -> 503 | R5: =Q5*$R$1 -> 5.03 | S5: =Q5*$S$1 -> 10.06 | U5: =U4+R5 -> 15.045 | V5: =V4+S5 -> 30.09 | W5: =W4+T5 -> 0
M6: Fed @% bodyweight commercial feed | N6: 0.01 | Q6: 504.5 | R6: 5.045 | S6: 10.09 | U6: =U5+R6 -> 20.09 | V6: =V5+S6 -> 40.18 | W6: =W5+T6 -> 0
B7: Direct Expenses | M7: Ending weight | N7: =N3+N5*N4 -> 995 | Q7: 506 | R7: 5.06 | S7: 10.12 | U7: 25.15 | V7: 50.3 | W7: 0
B8: Feed | Q8: 507.5 | R8: 5.075 | S8: 10.15 | U8: 30.225 | V8: 60.45 | W8: 0
C9: Hay | D9: ton | E9: 100 | F9: =VLOOKUP(N7,Q3:W337,7)/2000 -> 0.74235 | G9: =E9*F9 -> 74.235 | Q9: 509 | R9: 5.09 | S9: 10.18 | U9: 35.315 | V9: 70.63 | W9: 0
C10: Commodity feed | D10: ton | E10: 275 | F10: =VLOOKUP(N7,Q3:W337,5)/2000 -> 1.2371125 | G10: =E10*F10 -> 340.2059375 | M10: Number of bulls | N10: 2 | Q10: 510.5 | R10: 5.105 | S10: 10.21 | U10: 40.42 | V10: 80.84 | W10: 0
C11: Cool season pasture | D11: acre | E11: 250 | F11: =VLOOKUP(N7,Q3:W337,6)/N14 -> 1.154583333 | G11: 288.6458333 | M11: Average bull purchase price | N11: 4000 | Q11: 512 | R11: 5.12 | S11: 10.24 | U11: 45.54 | V11: 91.08 | W11: 0
C12: Bull maintenance | D12: ton | E12: 275 | F12: =N13/2000/N2 -> 0.1314 | G12: =E12*F12 -> 36.135 | M12: Expected bull salvage value | N12: =NPV(0.07,-N11*N10,0,0,0,1.3*N10*1800) -> -4139.860194 | Q12: 513.5 | R12: 5.135 | S12: 10.27 | U12: 50.675 | V12: 101.35 | W12: 0
C13: Salt and mineral | D13: cwt | E13: 30 | F13: 0.3 | G13: =E13*F13 -> 9 | M13: Bull consume 2% body weight year round | N13: =1800*0.02*365*N10 -> 26280 | Q13: 515 | R13: 5.15 | S13: 10.3 | U13: 55.825 | V13: 111.65 | W13: 0
B14: Health/Med | M14: Expected cool season forage yield (lbs) | N14: 3000 | Q14: 516.5 | R14: 5.165 | S14: 10.33 | U14: 60.99 | V14: 121.98 | W14: 0
C15: 7-way blackleg | D15: dose | E15: 1.25 | F15: 2 | G15: =E15*F15 -> 2.5 | Q15: 518 | R15: 5.18 | S15: 10.36 | U15: 66.17 | V15: 132.34 | W15: 0
C16: Respirtory, Lepto/Vibrio | D16: dose | E16: 2.95 | F16: 2 | G16: =E16*F16 -> 5.9 | Q16: 519.5 | R16: 5.195 | S16: 10.39 | U16: 71.365 | V16: 142.73 | W16: 0
C17: Dewormer | D17: mL | E17: 0.13 | F17: 23 | G17: =E17*F17 -> 2.99 | Q17: 521 | R17: 5.21 | S17: 10.42 | U17: 76.575 | V17: 153.15 | W17: 0
B18: Repro Service | Q18: 522.5 | R18: 5.225 | S18: 10.45 | U18: 81.8 | V18: 163.6 | W18: 0
C19: CIDR | D19: hd | E19: 15.7 | F19: 1 | G19: =E19*F19 -> 15.7 | Q19: 524 | R19: 5.24 | S19: 10.48 | U19: 87.04 | V19: 174.08 | W19: 0
C20: Prostaglandin | D20: hd | E20: 3 | F20: 1 | G20: 3 | Q20: 525.5 | R20: 5.255 | S20: 10.51 | U20: 92.295 | V20: 184.59 | W20: 0
C21: Estrus detection patch | D21: hd | E21: 1.5 | F21: 1 | G21: 1.5 | Q21: 527 | R21: 5.27 | S21: 10.54 | U21: 97.565 | V21: 195.13 | W21: 0
C22: Semen | D22: hd | E22: 25 | F22: 1 | G22: 25 | Q22: 528.5 | R22: 5.285 | S22: 10.57 | U22: 102.85 | V22: 205.7 | W22: 0
C23: Breeding charge | D23: hd | E23: 10 | F23: 1 | G23: 10 | Q23: 530 | R23: 5.3 | S23: 10.6 | U23: 108.15 | V23: 216.3 | W23: 0
C24: GnRH | D24: hd | E24: 1.5 | F24: 2 | G24: 3 | Q24: 531.5 | R24: 5.315 | S24: 10.63 | U24: 113.465 | V24: 226.93 | W24: 0
C25: Cleanup bull service | D25: hd | E25: =-N12/(N2*4) -> 10.34965049 | F25: 1 | G25: 10.34965049 | Q25: 533 | R25: 5.33 | S25: 10.66 | U25: 118.795 | V25: 237.59 | W25: 0
C26: Pregnancy detection | D26: hd | E26: 10 | F26: 1 | G26: 10 | Q26: 534.5 | R26: 5.345 | S26: 10.69 | U26: 124.14 | V26: 248.28 | W26: 0
B27: Labor | Q27: 536 | R27: 5.36 | S27: 10.72 | U27: 129.5 | V27: 259 | W27: 0
C28: Chute work | D28: hrs | E28: 15 | F28: 1.2 | G28: =E28*F28 -> 18 | P28: Nov | Q28: 537.5 | R28: 5.375 | S28: 10.75 | U28: 134.875 | V28: 269.75 | W28: 0
C29: Other labor | D29: hrs | E29: 15 | F29: =20/N2 -> 0.2 | G29: =E29*F29 -> 3 | Q29: 539 | R29: 5.39 | S29: 10.78 | U29: 140.265 | V29: 280.53 | W29: 0
B30: Other | Q30: 540.5 | R30: 5.405 | S30: 10.81 | U30: 145.67 | V30: 291.34 | W30: 0
C31: Ear tags | D31: hd | E31: 1.3 | F31: 1 | G31: =E31*F31 -> 1.3 | Q31: 542 | R31: 5.42 | S31: 10.84 | U31: 151.09 | V31: 302.18 | W31: 0
C32: Land | D32: acre | E32: 20 | F32: =F11 -> 1.154583333 | G32: =E32*F32 -> 23.09166667 | Q32: 543.5 | R32: 5.435 | S32: 10.87 | U32: 156.525 | V32: 313.05 | W32: 0
C33: Facility Maintenance | D33: hd | E33: 50 | F33: 1 | G33: =E33*F33 -> 50 | Q33: 545 | R33: 5.45 | S33: 10.9 | U33: 161.975 | V33: 323.95 | W33: 0
B34: Total Cash Costs | D34: $/hd | G34: =SUM(G5:G33) -> 2258.553088 | Q34: 546.5 | R34: 5.465 | S34: 10.93 | U34: 167.44 | V34: 334.88 | W34: 0
B35: Non-Breeder Cost/Revenue | Q35: 548 | R35: 5.48 | S35: 10.96 | U35: 172.92 | V35: 345.84 | W35: 0
C36: Bred heifer | D36: % | E36: 0.8 | F36: 1 | G36: =SUM(G5:G33)*(1-E36) -> 451.7106176 | Q36: =Q35+$N$4 -> 549.5 | R36: 5.495 | S36: 10.99 | U36: 178.415 | V36: 356.83 | W36: 0
C37: Open heifer sell | D37: lb | E37: 1.85 | F37: =+N7 -> 995 | G37: =F37*E37*(1-E36) -> 368.15 | Q37: 551 | R37: 5.51 | S37: 11.02 | U37: 183.925 | V37: 367.85 | W37: 0
B38: Total Cost Per Bred Heifer | G38: =G34+G36-G37 -> 2342.113706 | Q38: 552.5 | R38: 5.525 | S38: 11.05 | U38: 189.45 | V38: 378.9 | W38: 0
Q39: 554 | R39: 5.54 | S39: 11.08 | U39: 194.99 | V39: 389.98 | W39: 0
Q40: 555.5 | R40: 5.555 | S40: 11.11 | U40: 200.545 | V40: 401.09 | W40: 0
Q41: 557 | R41: 5.57 | S41: 11.14 | U41: 206.115 | V41: 412.23 | W41: 0
Q42: 558.5 | R42: 5.585 | S42: 11.17 | U42: 211.7 | V42: 423.4 | W42: 0
Q43: 560 | R43: 5.6 | S43: 11.2 | U43: 217.3 | V43: 434.6 | W43: 0
Q44: 561.5 | R44: 5.615 | S44: 11.23 | U44: 222.915 | V44: 445.83 | W44: 0
Q45: 563 | R45: 5.63 | S45: 11.26 | U45: 228.545 | V45: 457.09 | W45: 0
Q46: 564.5 | R46: 5.645 | S46: 11.29 | U46: 234.19 | V46: 468.38 | W46: 0
Q47: 566 | R47: 5.66 | S47: 11.32 | U47: 239.85 | V47: 479.7 | W47: 0
Q48: 567.5 | R48: 5.675 | S48: 11.35 | U48: 245.525 | V48: 491.05 | W48: 0
Q49: 569 | R49: 5.69 | S49: 11.38 | U49: 251.215 | V49: 502.43 | W49: 0
Q50: 570.5 | R50: 5.705 | S50: 11.41 | U50: 256.92 | V50: 513.84 | W50: 0
Q51: 572 | R51: 5.72 | S51: 11.44 | U51: 262.64 | V51: 525.28 | W51: 0
Q52: 573.5 | R52: 5.735 | S52: 11.47 | U52: 268.375 | V52: 536.75 | W52: 0
Q53: 575 | R53: 5.75 | S53: 11.5 | U53: 274.125 | V53: 548.25 | W53: 0
Q54: 576.5 | R54: 5.765 | S54: 11.53 | U54: 279.89 | V54: 559.78 | W54: 0
Q55: 578 | R55: 5.78 | S55: 11.56 | U55: 285.67 | V55: 571.34 | W55: 0
Q56: 579.5 | R56: 5.795 | S56: 11.59 | U56: 291.465 | V56: 582.93 | W56: 0
Q57: 581 | R57: 5.81 | S57: 11.62 | U57: 297.275 | V57: 594.55 | W57: 0
P58: Dec | Q58: 582.5 | R58: 5.825 | S58: 11.65 | U58: 303.1 | V58: 606.2 | W58: 0
Q59: 584 | R59: 5.84 | S59: 11.68 | U59: 308.94 | V59: 617.88 | W59: 0
Q60: 585.5 | R60: 5.855 | S60: 11.71 | U60: 314.795 | V60: 629.59 | W60: 0
Q61: 587 | R61: 5.87 | S61: 11.74 | U61: 320.665 | V61: 641.33 | W61: 0
Q62: 588.5 | R62: 5.885 | S62: 11.77 | U62: 326.55 | V62: 653.1 | W62: 0
Q63: 590 | R63: 5.9 | S63: 11.8 | U63: 332.45 | V63: 664.9 | W63: 0
Q64: 591.5 | R64: 5.915 | S64: 11.83 | U64: 338.365 | V64: 676.73 | W64: 0
Q65: 593 | R65: 5.93 | S65: 11.86 | U65: 344.295 | V65: 688.59 | W65: 0
Q66: 594.5 | R66: 5.945 | S66: 11.89 | U66: 350.24 | V66: 700.48 | W66: 0
Q67: 596 | R67: 5.96 | S67: 11.92 | U67: 356.2 | V67: 712.4 | W67: 0
Q68: =Q67+$N$4 -> 597.5 | R68: 5.975 | S68: =Q68*$S$1 -> 11.95 | U68: 362.175 | V68: 724.35 | W68: 0
Q69: 599 | R69: =Q69*$R$1 -> 5.99 | S69: 11.98 | U69: 368.165 | V69: 736.33 | W69: 0
Q70: 600.5 | R70: 6.005 | S70: 12.01 | U70: =U69+R70 -> 374.17 | V70: =V69+S70 -> 748.34 | W70: =W69+T70 -> 0
Q71: 602 | R71: 6.02 | S71: 12.04 | U71: 380.19 | V71: 760.38 | W71: 0
Q72: 603.5 | R72: 6.035 | S72: 12.07 | U72: 386.225 | V72: 772.45 | W72: 0
Q73: 605 | R73: 6.05 | S73: 12.1 | U73: 392.275 | V73: 784.55 | W73: 0
Q74: 606.5 | R74: 6.065 | S74: 12.13 | U74: 398.34 | V74: 796.68 | W74: 0
Q75: 608 | R75: 6.08 | S75: 12.16 | U75: 404.42 | V75: 808.84 | W75: 0
Q76: 609.5 | R76: 6.095 | S76: 12.19 | U76: 410.515 | V76: 821.03 | W76: 0
Q77: 611 | R77: 6.11 | S77: 12.22 | U77: 416.625 | V77: 833.25 | W77: 0
Q78: 612.5 | R78: 6.125 | S78: 12.25 | U78: 422.75 | V78: 845.5 | W78: 0
Q79: 614 | R79: 6.14 | S79: 12.28 | U79: 428.89 | V79: 857.78 | W79: 0
Q80: 615.5 | R80: 6.155 | S80: 12.31 | U80: 435.045 | V80: 870.09 | W80: 0
Q81: 617 | R81: 6.17 | S81: 12.34 | U81: 441.215 | V81: 882.43 | W81: 0
Q82: 618.5 | R82: 6.185 | S82: 12.37 | U82: 447.4 | V82: 894.8 | W82: 0
Q83: 620 | R83: 6.2 | S83: 12.4 | U83: 453.6 | V83: 907.2 | W83: 0
Q84: 621.5 | R84: 6.215 | S84: 12.43 | U84: 459.815 | V84: 919.63 | W84: 0
Q85: 623 | R85: 6.23 | S85: 12.46 | U85: 466.045 | V85: 932.09 | W85: 0
Q86: 624.5 | R86: 6.245 | S86: 12.49 | U86: 472.29 | V86: 944.58 | W86: 0
Q87: 626 | R87: 6.26 | S87: 12.52 | U87: 478.55 | V87: 957.1 | W87: 0
Q88: 627.5 | R88: 6.275 | S88: 12.55 | U88: 484.825 | V88: 969.65 | W88: 0
P89: Jan | Q89: 629 | R89: 6.29 | T89: =Q89*$T$1 -> 12.58 | U89: 491.115 | V89: 969.65 | W89: 12.58
Q90: 630.5 | R90: 6.305 | T90: =Q90*$T$1 -> 12.61 | U90: 497.42 | V90: 969.65 | W90: 25.19
Q91: 632 | R91: 6.32 | T91: 12.64 | U91: 503.74 | V91: 969.65 | W91: 37.83
Q92: 633.5 | R92: 6.335 | T92: 12.67 | U92: 510.075 | V92: 969.65 | W92: 50.5
Q93: 635 | R93: 6.35 | T93: 12.7 | U93: 516.425 | V93: 969.65 | W93: 63.2
Q94: 636.5 | R94: 6.365 | T94: 12.73 | U94: 522.79 | V94: 969.65 | W94: 75.93
Q95: 638 | R95: 6.38 | T95: 12.76 | U95: 529.17 | V95: 969.65 | W95: 88.69
Q96: 639.5 | R96: 6.395 | T96: 12.79 | U96: 535.565 | V96: 969.65 | W96: 101.48
Q97: 641 | R97: 6.41 | T97: 12.82 | U97: 541.975 | V97: 969.65 | W97: 114.3
Q98: 642.5 | R98: 6.425 | T98: 12.85 | U98: 548.4 | V98: 969.65 | W98: 127.15
Q99: 644 | R99: 6.44 | T99: 12.88 | U99: 554.84 | V99: 969.65 | W99: 140.03
Q100: =Q99+$N$4 -> 645.5 | R100: 6.455 | T100: 12.91 | U100: 561.295 | V100: 969.65 | W100: 152.94
Q101: 647 | R101: 6.47 | T101: 12.94 | U101: 567.765 | V101: 969.65 | W101: 165.88
Q102: 648.5 | R102: 6.485 | T102: 12.97 | U102: 574.25 | V102: 969.65 | W102: 178.85
Q103: 650 | R103: 6.5 | T103: 13 | U103: 580.75 | V103: 969.65 | W103: 191.85
Q104: 651.5 | R104: 6.515 | T104: 13.03 | U104: 587.265 | V104: 969.65 | W104: 204.88
Q105: 653 | R105: 6.53 | T105: 13.06 | U105: 593.795 | V105: 969.65 | W105: 217.94
Q106: 654.5 | R106: 6.545 | T106: 13.09 | U106: 600.34 | V106: 969.65 | W106: 231.03
Q107: 656 | R107: 6.56 | T107: 13.12 | U107: 606.9 | V107: 969.65 | W107: 244.15
Q108: 657.5 | R108: 6.575 | T108: 13.15 | U108: 613.475 | V108: 969.65 | W108: 257.3
Q109: 659 | R109: 6.59 | T109: 13.18 | U109: 620.065 | V109: 969.65 | W109: 270.48
Q110: 660.5 | R110: 6.605 | T110: 13.21 | U110: 626.67 | V110: 969.65 | W110: 283.69
Q111: 662 | R111: 6.62 | T111: 13.24 | U111: 633.29 | V111: 969.65 | W111: 296.93
Q112: 663.5 | R112: 6.635 | T112: 13.27 | U112: 639.925 | V112: 969.65 | W112: 310.2
Q113: 665 | R113: 6.65 | T113: 13.3 | U113: 646.575 | V113: 969.65 | W113: 323.5
Q114: 666.5 | R114: 6.665 | T114: 13.33 | U114: 653.24 | V114: 969.65 | W114: 336.83
Q115: 668 | R115: 6.68 | T115: 13.36 | U115: 659.92 | V115: 969.65 | W115: 350.19
Q116: 669.5 | R116: 6.695 | T116: 13.39 | U116: 666.615 | V116: 969.65 | W116: 363.58
Q117: 671 | R117: 6.71 | T117: 13.42 | U117: 673.325 | V117: 969.65 | W117: 377
Q118: 672.5 | R118: 6.725 | T118: 13.45 | U118: 680.05 | V118: 969.65 | W118: 390.45
P119: Feb | Q119: 674 | R119: 6.74 | T119: 13.48 | U119: 686.79 | V119: 969.65 | W119: 403.93
Q120: 675.5 | R120: 6.755 | T120: 13.51 | U120: 693.545 | V120: 969.65 | W120: 417.44
Q121: 677 | R121: 6.77 | T121: 13.54 | U121: 700.315 | V121: 969.65 | W121: 430.98
Q122: 678.5 | R122: 6.785 | T122: 13.57 | U122: 707.1 | V122: 969.65 | W122: 444.55
Q123: 680 | R123: 6.8 | T123: 13.6 | U123: 713.9 | V123: 969.65 | W123: 458.15
Q124: 681.5 | R124: 6.815 | T124: 13.63 | U124: 720.715 | V124: 969.65 | W124: 471.78
Q125: 683 | R125: 6.83 | T125: 13.66 | U125: 727.545 | V125: 969.65 | W125: 485.44
Q126: 684.5 | R126: 6.845 | T126: 13.69 | U126: 734.39 | V126: 969.65 | W126: 499.13
Q127: 686 | R127: 6.86 | T127: 13.72 | U127: 741.25 | V127: 969.65 | W127: 512.85
Q128: 687.5 | R128: 6.875 | T128: 13.75 | U128: 748.125 | V128: 969.65 | W128: 526.6
Q129: 689 | R129: 6.89 | T129: 13.78 | U129: 755.015 | V129: 969.65 | W129: 540.38
Q130: 690.5 | R130: 6.905 | T130: 13.81 | U130: 761.92 | V130: 969.65 | W130: 554.19
Q131: 692 | R131: 6.92 | T131: 13.84 | U131: 768.84 | V131: 969.65 | W131: 568.03
Q132: =Q131+$N$4 -> 693.5 | R132: 6.935 | T132: 13.87 | U132: 775.775 | V132: 969.65 | W132: 581.9
Q133: 695 | R133: =Q133*$R$1 -> 6.95 | T133: 13.9 | U133: 782.725 | V133: 969.65 | W133: 595.8
Q134: 696.5 | R134: 6.965 | T134: 13.93 | U134: =U133+R134 -> 789.69 | V134: =V133+S134 -> 969.65 | W134: =W133+T134 -> 609.73
Q135: 698 | R135: 6.98 | T135: 13.96 | U135: 796.67 | V135: 969.65 | W135: 623.69
Q136: 699.5 | R136: 6.995 | T136: 13.99 | U136: 803.665 | V136: 969.65 | W136: 637.68
Q137: 701 | R137: 7.01 | T137: 14.02 | U137: 810.675 | V137: 969.65 | W137: 651.7
Q138: 702.5 | R138: 7.025 | T138: 14.05 | U138: 817.7 | V138: 969.65 | W138: 665.75
Q139: 704 | R139: 7.04 | T139: 14.08 | U139: 824.74 | V139: 969.65 | W139: 679.83
Q140: 705.5 | R140: 7.055 | T140: 14.11 | U140: 831.795 | V140: 969.65 | W140: 693.94
Q141: 707 | R141: 7.07 | T141: 14.14 | U141: 838.865 | V141: 969.65 | W141: 708.08
Q142: 708.5 | R142: 7.085 | T142: 14.17 | U142: 845.95 | V142: 969.65 | W142: 722.25
Q143: 710 | R143: 7.1 | T143: 14.2 | U143: 853.05 | V143: 969.65 | W143: 736.45
Q144: 711.5 | R144: 7.115 | T144: 14.23 | U144: 860.165 | V144: 969.65 | W144: 750.68
Q145: 713 | R145: 7.13 | T145: 14.26 | U145: 867.295 | V145: 969.65 | W145: 764.94
Q146: 714.5 | R146: 7.145 | T146: 14.29 | U146: 874.44 | V146: 969.65 | W146: 779.23
Q147: 716 | R147: 7.16 | T147: 14.32 | U147: 881.6 | V147: 969.65 | W147: 793.55
P148: Mar | Q148: 717.5 | R148: 7.175 | T148: 14.35 | U148: 888.775 | V148: 969.65 | W148: 807.9
Q149: 719 | R149: 7.19 | T149: 14.38 | U149: 895.965 | V149: 969.65 | W149: 822.28
Q150: 720.5 | R150: 7.205 | T150: 14.41 | U150: 903.17 | V150: 969.65 | W150: 836.69
Q151: 722 | R151: 7.22 | T151: 14.44 | U151: 910.39 | V151: 969.65 | W151: 851.13
Q152: 723.5 | R152: 7.235 | T152: 14.47 | U152: 917.625 | V152: 969.65 | W152: 865.6
Q153: 725 | R153: 7.25 | T153: 14.5 | U153: 924.875 | V153: 969.65 | W153: 880.1
Q154: 726.5 | R154: 7.265 | T154: =Q154*$T$1 -> 14.53 | U154: 932.14 | V154: 969.65 | W154: 894.63
Q155: 728 | R155: 7.28 | T155: 14.56 | U155: 939.42 | V155: 969.65 | W155: 909.19
Q156: 729.5 | R156: 7.295 | T156: 14.59 | U156: 946.715 | V156: 969.65 | W156: 923.78
Q157: 731 | R157: 7.31 | T157: 14.62 | U157: 954.025 | V157: 969.65 | W157: 938.4
Q158: 732.5 | R158: 7.325 | T158: 14.65 | U158: 961.35 | V158: 969.65 | W158: 953.05
Q159: 734 | R159: 7.34 | T159: 14.68 | U159: 968.69 | V159: 969.65 | W159: 967.73
Q160: 735.5 | R160: 7.355 | T160: 14.71 | U160: 976.045 | V160: 969.65 | W160: 982.44
Q161: 737 | R161: 7.37 | T161: 14.74 | U161: 983.415 | V161: 969.65 | W161: 997.18
Q162: 738.5 | R162: 7.385 | T162: 14.77 | U162: 990.8 | V162: 969.65 | W162: 1011.95
Q163: 740 | R163: 7.4 | T163: 14.8 | U163: 998.2 | V163: 969.65 | W163: 1026.75
Q164: 741.5 | R164: 7.415 | T164: 14.83 | U164: 1005.615 | V164: 969.65 | W164: 1041.58
Q165: 743 | R165: 7.43 | T165: 14.86 | U165: 1013.045 | V165: 969.65 | W165: 1056.44
Q166: 744.5 | R166: 7.445 | T166: 14.89 | U166: 1020.49 | V166: 969.65 | W166: 1071.33
Q167: 746 | R167: 7.46 | T167: 14.92 | U167: 1027.95 | V167: 969.65 | W167: 1086.25
Q168: 747.5 | R168: 7.475 | T168: 14.95 | U168: 1035.425 | V168: 969.65 | W168: 1101.2
Q169: 749 | R169: 7.49 | T169: 14.98 | U169: 1042.915 | V169: 969.65 | W169: 1116.18
Q170: 750.5 | R170: 7.505 | T170: 15.01 | U170: 1050.42 | V170: 969.65 | W170: 1131.19
Q171: 752 | R171: 7.52 | T171: 15.04 | U171: 1057.94 | V171: 969.65 | W171: 1146.23
Q172: 753.5 | R172: 7.535 | T172: 15.07 | U172: 1065.475 | V172: 969.65 | W172: 1161.3
Q173: 755 | R173: 7.55 | T173: 15.1 | U173: 1073.025 | V173: 969.65 | W173: 1176.4
Q174: 756.5 | R174: 7.565 | T174: 15.13 | U174: 1080.59 | V174: 969.65 | W174: 1191.53
Q175: 758 | R175: 7.58 | T175: 15.16 | U175: 1088.17 | V175: 969.65 | W175: 1206.69
Q176: 759.5 | R176: 7.595 | T176: 15.19 | U176: 1095.765 | V176: 969.65 | W176: 1221.88
Q177: 761 | R177: 7.61 | T177: 15.22 | U177: 1103.375 | V177: 969.65 | W177: 1237.1
Q178: 762.5 | R178: 7.625 | T178: 15.25 | U178: 1111 | V178: 969.65 | W178: 1252.35
P179: Apr | Q179: 764 | R179: 7.64 | T179: 15.28 | U179: 1118.64 | V179: 969.65 | W179: 1267.63
Q180: 765.5 | R180: 7.655 | T180: 15.31 | U180: 1126.295 | V180: 969.65 | W180: 1282.94
Q181: 767 | R181: 7.67 | T181: 15.34 | U181: 1133.965 | V181: 969.65 | W181: 1298.28
Q182: 768.5 | R182: 7.685 | T182: 15.37 | U182: 1141.65 | V182: 969.65 | W182: 1313.65
Q183: 770 | R183: 7.7 | T183: 15.4 | U183: 1149.35 | V183: 969.65 | W183: 1329.05
Q184: 771.5 | R184: 7.715 | T184: 15.43 | U184: 1157.065 | V184: 969.65 | W184: 1344.48
Q185: 773 | R185: 7.73 | T185: 15.46 | U185: 1164.795 | V185: 969.65 | W185: 1359.94
Q186: 774.5 | R186: 7.745 | T186: 15.49 | U186: 1172.54 | V186: 969.65 | W186: 1375.43
Q187: 776 | R187: 7.76 | T187: 15.52 | U187: 1180.3 | V187: 969.65 | W187: 1390.95
Q188: 777.5 | R188: 7.775 | T188: 15.55 | U188: 1188.075 | V188: 969.65 | W188: 1406.5
Q189: 779 | R189: 7.79 | T189: 15.58 | U189: 1195.865 | V189: 969.65 | W189: 1422.08
Q190: 780.5 | R190: 7.805 | T190: 15.61 | U190: 1203.67 | V190: 969.65 | W190: 1437.69
Q191: 782 | R191: 7.82 | T191: 15.64 | U191: 1211.49 | V191: 969.65 | W191: 1453.33
Q192: 783.5 | R192: 7.835 | T192: 15.67 | U192: 1219.325 | V192: 969.65 | W192: 1469
Q193: 785 | R193: 7.85 | T193: 15.7 | U193: 1227.175 | V193: 969.65 | W193: 1484.7
Q194: 786.5 | R194: 7.865 | S194: =Q194*$S$1 -> 15.73 | U194: 1235.04 | V194: 985.38 | W194: 1484.7
Q195: 788 | R195: 7.88 | S195: =Q195*$S$1 -> 15.76 | U195: 1242.92 | V195: 1001.14 | W195: 1484.7
Q196: =Q195+$N$4 -> 789.5 | R196: 7.895 | S196: 15.79 | U196: 1250.815 | V196: 1016.93 | W196: 1484.7
Q197: 791 | R197: =Q197*$R$1 -> 7.91 | S197: 15.82 | U197: 1258.725 | V197: 1032.75 | W197: 1484.7
Q198: 792.5 | R198: 7.925 | S198: 15.85 | U198: =U197+R198 -> 1266.65 | V198: =V197+S198 -> 1048.6 | W198: =W197+T198 -> 1484.7
Q199: 794 | R199: 7.94 | S199: 15.88 | U199: 1274.59 | V199: 1064.48 | W199: 1484.7
Q200: 795.5 | R200: 7.955 | S200: 15.91 | U200: 1282.545 | V200: 1080.39 | W200: 1484.7
... 137 more rows
